[Event "Slovakian ECo-C Extraliga 2024-25"]
[Site "Slovakia"]
[Date "2025.02.16"]
[Round "6"]
[White "Sahidi, Samir"]
[Black "Stalmach, Richard"]
[Result "1-0"]
[Annotator "ChessBase"]
[ECO "D37"]
[WhiteElo "2497"]
[BlackElo "2455"]
[PlyCount "81"]
[EventDate "2024.09.12"]
[EventType "team-tourn"]
[EventCountry "SVK"]
[SourceTitle "playchess.com"]
[Source "ChessBase"]
[SourceQuality "1"]
[TimeControl "5400+30"]

1. Nf3 {[%emt 0:00:09]} d5 {[%emt 0:01:34]} 2. d4 {[%emt 0:00:26]} Nf6 {[%emt 0:00:21]} 3. c4 {[%emt 0:00:05]} e6 {[%emt 0:00:05]} 4. Nc3 {[%emt 0:01:02]} Nbd7 {[%emt 0:00:25]} 5. Bg5 {[%emt 0:01:43]} Bb4 {[%emt 0:01:01]} 6. e3 {[%emt 0:01:59]} c5 {[%emt 0:00:21]} 7. cxd5 {[%emt 0:02:41]} exd5 {[%emt 0:00:12]} 8. Bd3 {[%emt 0:07:38]} Qa5 {[%emt 0:01:07]} 9. O-O {[%emt 0:01:18]} c4 {[%emt 0:00:19]} 10. Bf5 {[%emt 0:00:48]} O-O {[%emt 0:00:20]} 11. Qc2 {[%emt 0:01:39]} Re8 {[%emt 0:00:36]} 12. a3 {[%emt 0:03:21]} Bxc3 {[%emt 0:00:24]} 13. Qxc3 {[%emt 0:01:24]} Qa6 {[%emt 0:00:17]} 14. Rfc1 {[%emt 0:05:01]} h6 {[%emt 0:01:00]} 15. Bh4 {[%emt 0:01:41]} Nf8 {[%emt 0:08:07]} 16. Bc2 {[%emt 0:00:47]} g5 {[%emt 0:36:51]} 17. Bg3 {[%emt 0:00:22]} Be6 {[%emt 0:00:04]} 18. h4 {[%emt 0:09:12]} g4 {[%emt 0:01:34]} 19. Nd2 {[%emt 0:01:05]} Rac8 {[%emt 0:15:31]} 20. e4 {[%emt 0:01:58]} Ng6 {[%emt 0:00:57]} 21. Re1 {[%emt 0:02:39]} Qb6 {[%emt 0:05:25]} 22. Re2 {[%emt 0:05:40]} Nh5 {[%emt 0:05:59]} 23. Rae1 {[%emt 0:10:40]} Ngf4 {[%emt 0:01:10]} 24. Re3 {[%emt 0:00:20]} Red8 {[%emt 0:04:04]} 25. Nf1 {[%emt 0:02:51]} Nd3 {[%emt 0:02:58]} 26. exd5 {[%emt 0:03:21]} Bf5 {[%emt 0:09:37]} 27. d6 {[%emt 0:07:02]} Bg6 {[%emt 0:02:36]} 28. d7 {[%emt 0:02:50]} Rc6 {[%emt 0:00:01]} 29. Re8+ {[%emt 0:04:59]} Kh7 {[%emt 0:00:00]} 30. d5 {[%emt 0:02:44]} Rf6 {[%emt 0:00:01]} 31. Bxd3 {[%emt 0:00:49]} Bxd3 {[%emt 0:00:01]} 32. Rxd8 {[%emt 0:01:17]} Qxd8 {[%emt 0:00:01]} 33. Qe5 {[%emt 0:00:27]} Bf5 {[%emt 0:00:17]} 34. Ne3 {[%emt 0:01:57]} Qxd7 {[%emt 0:00:16]} 35. Nxc4 {[%emt 0:00:30]} Bg6 {[%emt 0:00:51]} 36. Qd4 {[%emt 0:01:10]} Ra6 {[%emt 0:02:34]} 37. Ne5 {[%emt 0:01:04]} Qa4 {[%emt 0:00:02]} 38. Qxa4 {[%emt 0:00:58]} Rxa4 {[%emt 0:00:01]} 39. Rd1 {[%emt 0:00:08]} Bf5 {[%emt 0:02:28]} 40. d6 {[%emt 0:00:12]} Re4 {[%emt 0:00:30]} 41. d7 {[%emt 0:00:21]} 1-0

[Event "Slovakian ECo-C Extraliga 2024-25"]
[Site "Slovakia"]
[Date "2025.02.16"]
[Round "6"]
[White "Piesik, Piotr"]
[Black "Bochnicka, Vladimir"]
[Result "1-0"]
[Annotator "ChessBase"]
[ECO "D32"]
[WhiteElo "2422"]
[BlackElo "2348"]
[PlyCount "115"]
[EventDate "2024.09.12"]
[EventType "team-tourn"]
[EventCountry "SVK"]
[SourceTitle "playchess.com"]
[Source "ChessBase"]
[SourceQuality "1"]
[TimeControl "5400+30"]

1. d4 {[%emt 0:00:06]} d5 {[%emt 0:00:12]} 2. c4 {[%emt 0:00:06]} e6 {[%emt 0:00:09]} 3. Nc3 {[%emt 0:00:05]} c5 {[%emt 0:00:25]} 4. cxd5 {[%emt 0:00:19]} cxd4 {[%emt 0:00:15]} 5. Qa4+ {[%emt 0:00:07]} Bd7 {[%emt 0:00:27]} 6. Qxd4 {[%emt 0:00:04]} exd5 {[%emt 0:00:39]} 7. Qxd5 {[%emt 0:00:06]} Nf6 {[%emt 0:00:34]} 8. Qd1 {[%emt 0:00:10]} Bc5 {[%emt 0:01:29]} 9. Nf3 {[%emt 0:00:05]} O-O {[%emt 0:04:37]} 10. a3 {[%emt 0:00:46]} Qc7 {[%emt 0:01:42]} 11. Bg5 {[%emt 0:04:09]} Qb6 {[%emt 0:14:06]} 12. e3 {[%emt 0:00:22]} Qxb2 {[%emt 0:03:44]} 13. Bxf6 {[%emt 0:01:06]} gxf6 {[%emt 0:00:07]} 14. Nd5 {[%emt 0:00:05]} Ba4 {[%emt 0:02:37]} 15. Qb1 {[%emt 0:00:38]} Qxb1+ {[%emt 0:04:52]} 16. Rxb1 {[%emt 0:00:06]} Nd7 {[%emt 0:07:43]} 17. Rxb7 {[%emt 0:01:51]} Rfd8 {[%emt 0:00:36]} 18. Bb5 {[%emt 0:10:34]} Bxb5 {[%emt 0:05:09]} 19. Rxb5 {[%emt 0:00:06]} Rab8 {[%emt 0:01:01]} 20. Rxb8 {[%emt 0:25:59]} Rxb8 {[%emt 0:00:12]} 21. Ke2 {[%emt 0:00:05]} Rb2+ {[%emt 0:13:27]} 22. Nd2 {[%emt 0:00:56]} Bxa3 {[%emt 0:00:28]} 23. Ra1 {[%emt 0:00:31]} Bc5 {[%emt 0:00:44]} 24. f4 {[%emt 0:11:20]} Kg7 {[%emt 0:08:19]} 25. Kd3 {[%emt 0:02:51]} Nb6 {[%emt 0:06:51]} 26. Nxb6 {[%emt 0:13:30]} Bxb6 {[%emt 0:05:43]} 27. Kc3 {[%emt 0:00:56]} Rb5 {[%emt 0:00:20]} 28. Nc4 {[%emt 0:01:00]} Bc5 {[%emt 0:00:22]} 29. e4 {[%emt 0:09:20]} Rb7 {[%emt 0:02:40]} 30. Kc2 {[%emt 0:03:47]} Re7 {[%emt 0:04:24]} 31. Ra5 {[%emt 0:02:59]} Bb6 {[%emt 0:04:19]} 32. Nxb6 {[%emt 0:00:23]} axb6 {[%emt 0:00:04]} 33. Ra4 {[%emt 0:00:04]} f5 {[%emt 0:00:26]} 34. e5 {[%emt 0:01:53]} f6 {[%emt 0:00:21]} 35. exf6+ {[%emt 0:02:30]} Kxf6 {[%emt 0:00:07]} 36. Kd3 {[%emt 0:00:02]} Rd7+ {[%emt 0:01:58]} 37. Ke3 {[%emt 0:00:38]} Re7+ {[%emt 0:01:03]} 38. Kf3 {[%emt 0:01:51]} Rc7 {[%emt 0:02:09]} 39. Rb4 {[%emt 0:03:29]} Rc3+ {[%emt 0:02:07]} 40. Kf2 {[%emt 0:00:04]} Rc6 {[%emt 0:00:09]} 41. Rb5 {[%emt 0:00:10]} Re6 {[%emt 0:02:10]} 42. Kg3 {[%emt 0:00:58]} Kg6 {[%emt 0:02:04]} 43. Kh4 {[%emt 0:00:54]} Rf6 {[%emt 0:00:00]} 44. h3 {[%emt 0:00:00]} Kh6 {[%emt 0:00:00]} 45. Rb4 {[%emt 0:00:00]} Kg6 {[%emt 0:00:00]} 46. g4 {[%emt 0:00:00]} h6 {[%emt 0:00:00]} 47. Kg3 {[%emt 0:00:00]} Rc6 {[%emt 0:00:00]} 48. Rb5 {[%emt 0:00:00]} fxg4 {[%emt 0:00:00]} 49. hxg4 {[%emt 0:00:00]} Kf6 {[%emt 0:00:00]} 50. Kh4 {[%emt 0:00:00]} Kg6 {[%emt 0:00:00]} 51. Rd5 {[%emt 0:00:00]} Kf6 {[%emt 0:00:00]} 52. Rd7 {[%emt 0:00:00]} Kg6 {[%emt 0:00:00]} 53. f5+ {[%emt 0:00:00]} Kf6 {[%emt 0:00:00]} 54. Kh5 {[%emt 0:00:00]} Ke5 {[%emt 0:04:16]} 55. Rh7 {[%emt 0:00:00]} b5 {[%emt 0:00:28]} 56. Rb7 {[%emt 0:00:00]} Rc5 {[%emt 0:00:47]} 57. Kxh6 {[%emt 0:00:00]} Kf4 {[%emt 0:00:11]} 58. f6 {[%emt 0:00:00]} 1-0

[Event "Slovakian ECo-C Extraliga 2024-25"]
[Site "Slovakia"]
[Date "2025.02.16"]
[Round "6"]
[White "Jurcik, Martin"]
[Black "Rak, Martin"]
[Result "1/2-1/2"]
[Annotator "ChessBase"]
[ECO "C11"]
[WhiteElo "2349"]
[BlackElo "2064"]
[PlyCount "51"]
[EventDate "2024.09.12"]
[EventType "team-tourn"]
[EventCountry "SVK"]
[SourceTitle "playchess.com"]
[Source "ChessBase"]
[SourceQuality "1"]
[TimeControl "5400+30"]

1. e4 {[%emt 0:00:08]} e6 {[%emt 0:00:44]} 2. d4 {[%emt 0:00:23]} d5 {[%emt 0:00:06]} 3. Nc3 {[%emt 0:00:26]} Nf6 {[%emt 0:00:49]} 4. e5 {[%emt 0:01:28]} Nfd7 {[%emt 0:00:17]} 5. Nce2 {[%emt 0:00:48]} c5 {[%emt 0:00:32]} 6. c3 {[%emt 0:00:14]} Nc6 {[%emt 0:00:24]} 7. Nf3 {[%emt 0:00:55]} a5 {[%emt 0:04:21]} 8. Nf4 {[%emt 0:14:20]} a4 {[%emt 0:08:12]} 9. a3 {[%emt 0:11:56]} Qa5 {[%emt 0:06:03]} 10. Be3 {[%emt 0:30:18]} cxd4 {[%emt 0:12:56]} 11. Bxd4 {[%emt 0:00:02]} Nxd4 {[%emt 0:12:20]} 12. Qxd4 {[%emt 0:03:19]} Nc5 {[%emt 0:01:36]} 13. Nd2 {[%emt 0:05:25]} Bd7 {[%emt 0:02:46]} 14. Be2 {[%emt 0:07:13]} Bb5 {[%emt 0:13:30]} 15. O-O {[%emt 0:00:09]} Rd8 {[%emt 0:01:19]} 16. Qb4 {[%emt 0:08:44]} Qxb4 {[%emt 0:00:21]} 17. axb4 {[%emt 0:00:01]} Bxe2 {[%emt 0:00:08]} 18. Nxe2 {[%emt 0:00:02]} Nd3 {[%emt 0:00:29]} 19. Rxa4 {[%emt 0:01:03]} Nxe5 {[%emt 0:01:37]} 20. Ra7 {[%emt 0:04:32]} Rb8 {[%emt 0:01:25]} 21. Nd4 {[%emt 0:03:58]} Kd7 {[%emt 0:05:33]} 22. f4 {[%emt 0:01:42]} Nc6 {[%emt 0:03:32]} 23. Nxc6 {[%emt 0:00:27]} Kxc6 {[%emt 0:00:03]} 24. Nf3 {[%emt 0:01:09]} Kb6 {[%emt 0:01:26]} 25. Raa1 {[%emt 0:00:39]} Bd6 {[%emt 0:01:12]} 26. Nd4 1/2-1/2

[Event "Slovakian ECo-C Extraliga 2024-25"]
[Site "Slovakia"]
[Date "2025.02.16"]
[Round "6"]
[White "Delgerdalai, Bayarjavkhlan"]
[Black "Jakab, Bela"]
[Result "1-0"]
[Annotator "ChessBase"]
[ECO "C18"]
[WhiteElo "2321"]
[BlackElo "2345"]
[PlyCount "111"]
[EventDate "2024.09.12"]
[EventType "team-tourn"]
[EventCountry "SVK"]
[SourceTitle "playchess.com"]
[Source "ChessBase"]
[SourceQuality "1"]
[TimeControl "5400+30"]

1. e4 {[%emt 0:00:02]} e6 {[%emt 0:00:06]} 2. d4 {[%emt 0:00:09]} d5 {[%emt 0:00:02]} 3. Nc3 {[%emt 0:00:05]} Bb4 {[%emt 0:00:05]} 4. e5 {[%emt 0:00:06]} Ne7 {[%emt 0:00:06]} 5. a3 {[%emt 0:00:06]} Bxc3+ {[%emt 0:00:10]} 6. bxc3 {[%emt 0:00:02]} c5 {[%emt 0:00:04]} 7. h4 {[%emt 0:01:28]} Nbc6 {[%emt 0:02:45]} 8. h5 {[%emt 0:00:30]} h6 {[%emt 0:02:23]} 9. Qg4 {[%emt 0:01:47]} Nf5 {[%emt 0:00:33]} 10. Nf3 {[%emt 0:10:40]} Qa5 {[%emt 0:01:02]} 11. Bd2 {[%emt 0:00:28]} c4 {[%emt 0:10:46]} 12. a4 {[%emt 0:02:21]} Bd7 {[%emt 0:02:44]} 13. Nh4 {[%emt 0:02:10]} Nce7 {[%emt 0:00:59]} 14. Nxf5 {[%emt 0:01:13]} Nxf5 {[%emt 0:02:24]} 15. Qf3 {[%emt 0:10:48]} Rf8 {[%emt 0:05:03]} 16. g4 {[%emt 0:00:12]} Ne7 {[%emt 0:07:34]} 17. Bh3 {[%emt 0:07:45]} O-O-O {[%emt 0:06:38]} 18. Qe3 {[%emt 0:10:51]} f6 {[%emt 0:03:38]} 19. exf6 {[%emt 0:02:14]} gxf6 {[%emt 0:13:37]} 20. Qxh6 {[%emt 0:01:28]} e5 {[%emt 0:16:00]} 21. Kf1 {[%emt 0:13:39]} Nc6 {[%emt 0:12:19]} 22. Kg2 {[%emt 0:12:32]} Rg8 {[%emt 0:03:36]} 23. g5 {[%emt 0:04:14]} fxg5 {[%emt 0:04:09]} 24. Bxd7+ {[%emt 0:01:08]} Rxd7 {[%emt 0:01:04]} 25. Qe6 {[%emt 0:00:31]} Rf8 {[%emt 0:02:45]} 26. dxe5 {[%emt 0:09:03]} Nd4 {[%emt 0:01:56]} 27. Qg4 {[%emt 0:01:23]} Nf3 {[%emt 0:00:19]} 28. e6 {[%emt 0:00:20]} Re7 {[%emt 0:00:35]} 29. Bxg5 {[%emt 0:02:59]} Nxg5 {[%emt 0:00:00]} 30. Qxg5 {[%emt 0:00:13]} Qxc3 {[%emt 0:01:04]} 31. Rh3 {[%emt 0:03:23]} Rg7 {[%emt 0:00:00]} 32. Rxc3 {[%emt 0:00:04]} Rxg5+ {[%emt 0:00:07]} 33. Rg3 {[%emt 0:00:04]} Rxh5 {[%emt 0:01:26]} 34. Re1 {[%emt 0:01:27]} Kc7 {[%emt 0:00:27]} 35. Rg7+ {[%emt 0:01:17]} Kc6 {[%emt 0:00:41]} 36. f4 {[%emt 0:01:32]} d4 {[%emt 0:00:34]} 37. Kg3 {[%emt 0:00:56]} Rd5 {[%emt 0:00:37]} 38. e7 {[%emt 0:00:03]} Re8 {[%emt 0:00:19]} 39. Kg4 {[%emt 0:01:03]} d3 {[%emt 0:00:07]} 40. cxd3 {[%emt 0:00:00]} cxd3 {[%emt 0:02:58]} 41. f5 {[%emt 0:17:48]} d2 {[%emt 0:00:34]} 42. Rd1 {[%emt 0:08:42]} Kd6 {[%emt 0:02:01]} 43. f6 {[%emt 0:01:34]} Rc8 {[%emt 0:05:14]} 44. Rf7 {[%emt 0:00:34]} Rc4+ {[%emt 0:03:50]} 45. Kf3 {[%emt 0:01:32]} Rf5+ {[%emt 0:01:40]} 46. Ke3 {[%emt 0:00:00]} Re5+ {[%emt 0:02:14]} 47. Kd3 {[%emt 0:02:11]} Kc5 {[%emt 0:04:35]} 48. Rxd2 {[%emt 0:00:55]} Rce4 {[%emt 0:00:00]} 49. Rf8 Kb4 {[%emt 0:00:00]} 50. Rc8 Kb3 {[%emt 0:01:50]} 51. Rc3+ {[%emt 0:00:00]} Kb4 {[%emt 0:00:00]} 52. Rb2+ {[%emt 0:00:00]} Kxa4 53. Rc4+ {[%emt 0:00:51]} Rxc4 {[%emt 0:00:00]} 54. Kxc4 {[%emt 0:00:18]} b5+ {[%emt 0:00:05]} 55. Rxb5 {[%emt 0:00:29]} Re6 {[%emt 0:00:22]} 56. Rb7 {[%emt 0:00:00]} 1-0

[Event "Slovakian ECo-C Extraliga 2024-25"]
[Site "Slovakia"]
[Date "2025.02.16"]
[Round "6"]
[White "Ongut, Tamas Gunes"]
[Black "Babula ml, Vlasimil"]
[Result "1/2-1/2"]
[Annotator "ChessBase"]
[ECO "B22"]
[WhiteElo "2272"]
[BlackElo "2353"]
[PlyCount "142"]
[EventDate "2024.09.12"]
[EventType "team-tourn"]
[EventCountry "SVK"]
[SourceTitle "playchess.com"]
[Source "ChessBase"]
[SourceQuality "1"]
[TimeControl "5400+30"]

1. e4 {[%emt 0:00:36]} c5 {[%emt 0:00:06]} 2. Nf3 {[%emt 0:00:09]} e6 {[%emt 0:03:27]} 3. c3 {[%emt 0:03:22]} Nf6 {[%emt 0:00:38]} 4. e5 {[%emt 0:00:10]} Nd5 {[%emt 0:01:14]} 5. a3 {[%emt 0:04:05]} d6 {[%emt 0:00:13]} 6. d4 {[%emt 0:05:42]} cxd4 {[%emt 0:01:55]} 7. c4 {[%emt 0:01:24]} Nb6 {[%emt 0:00:36]} 8. Qxd4 {[%emt 0:01:20]} Nc6 {[%emt 0:03:52]} 9. Qc3 {[%emt 0:02:56]} dxe5 {[%emt 0:04:07]} 10. Nxe5 {[%emt 0:01:38]} Nxe5 {[%emt 0:00:19]} 11. Qxe5 {[%emt 0:02:53]} Nd7 {[%emt 0:01:48]} 12. Qg3 {[%emt 0:12:03]} g6 {[%emt 0:09:41]} 13. Bd2 {[%emt 0:00:00]} Bg7 {[%emt 0:00:27]} 14. Bc3 {[%emt 0:02:34]} e5 {[%emt 0:07:11]} 15. Nd2 {[%emt 0:00:21]} O-O {[%emt 0:03:42]} 16. Be2 {[%emt 0:05:24]} Nc5 {[%emt 0:00:18]} 17. O-O {[%emt 0:01:35]} a5 {[%emt 0:02:52]} 18. Rad1 {[%emt 0:07:58]} Na4 {[%emt 0:01:52]} 19. Bxe5 {[%emt 0:01:27]} Nxb2 {[%emt 0:07:50]} 20. Bxg7 {[%emt 0:00:00]} Kxg7 {[%emt 0:03:39]} 21. Qc3+ {[%emt 0:00:00]} Qf6 {[%emt 0:00:33]} 22. Qxf6+ {[%emt 0:00:00]} Kxf6 {[%emt 0:04:46]} 23. Ne4+ {[%emt 0:02:04]} Kg7 {[%emt 0:08:30]} 24. Rd6 {[%emt 0:04:05]} Bf5 {[%emt 0:01:48]} 25. Ng3 {[%emt 0:00:37]} Be6 {[%emt 0:00:00]} 26. Rb1 {[%emt 0:01:39]} Nxc4 {[%emt 0:00:32]} 27. Rxe6 {[%emt 0:03:13]} fxe6 {[%emt 0:03:47]} 28. Rxb7+ {[%emt 0:07:29]} Rf7 {[%emt 0:00:40]} 29. Rxf7+ {[%emt 0:00:09]} Kxf7 {[%emt 0:00:11]} 30. Bxc4 {[%emt 0:00:13]} Rc8 {[%emt 0:00:39]} 31. Ne4 {[%emt 0:02:37]} Ke7 {[%emt 0:03:21]} 32. Nd2 {[%emt 0:01:30]} Rd8 {[%emt 0:00:10]} 33. Nf1 {[%emt 0:01:38]} a4 {[%emt 0:00:09]} 34. Bb5 {[%emt 0:00:20]} Rd1 {[%emt 0:00:12]} 35. Bxa4 {[%emt 0:00:00]} Ra1 {[%emt 0:02:54]} 36. Bc2 {[%emt 0:00:05]} Rxa3 {[%emt 0:01:57]} 37. h4 {[%emt 0:02:37]} Ra1 {[%emt 0:02:53]} 38. g3 {[%emt 0:04:43]} Rc1 {[%emt 0:00:22]} 39. Be4 {[%emt 0:00:09]} Re1 {[%emt 0:01:06]} 40. f3 {[%emt 0:01:16]} Re2 {[%emt 0:00:00]} 41. Nh2 {[%emt 0:06:22]} Ra2 {[%emt 0:00:08]} 42. Ng4 {[%emt 0:00:37]} Rb2 {[%emt 0:00:49]} 43. Ne5 {[%emt 0:01:17]} Kf6 {[%emt 0:00:20]} 44. f4 {[%emt 0:01:02]} Ra2 {[%emt 0:00:25]} 45. Bd3 {[%emt 0:01:13]} Rb2 {[%emt 0:00:22]} 46. Kf1 {[%emt 0:01:39]} Ra2 {[%emt 0:00:34]} 47. Be2 {[%emt 0:03:58]} Rb2 {[%emt 0:00:11]} 48. Kf2 {[%emt 0:00:21]} Ra2 {[%emt 0:00:05]} 49. Kf3 {[%emt 0:00:36]} Ra3+ {[%emt 0:00:00]} 50. Bd3 {[%emt 0:01:29]} Ra2 {[%emt 0:00:14]} 51. g4 {[%emt 0:03:59]} Rb2 {[%emt 0:01:23]} 52. g5+ {[%emt 0:02:08]} Kg7 {[%emt 0:00:38]} 53. Bc4 {[%emt 0:01:05]} Rb6 {[%emt 0:04:40]} 54. Kg4 {[%emt 0:01:05]} Rd6 {[%emt 0:03:50]} 55. h5 {[%emt 0:02:06]} gxh5+ {[%emt 0:00:05]} 56. Kxh5 {[%emt 0:01:56]} Rb6 {[%emt 0:02:02]} 57. Kg4 {[%emt 0:05:07]} Rd6 {[%emt 0:00:56]} 58. Bd3 {[%emt 0:01:54]} Rb6 {[%emt 0:00:32]} 59. Kf3 {[%emt 0:02:19]} h6 {[%emt 0:05:20]} 60. g6 {[%emt 0:01:30]} Rd6 {[%emt 0:00:58]} 61. Kg4 {[%emt 0:01:11]} Rb6 {[%emt 0:01:27]} 62. Bc4 {[%emt 0:01:13]} Rd6 {[%emt 0:00:21]} 63. Bb5 {[%emt 0:00:56]} Rd8 {[%emt 0:01:08]} 64. Bd7 {[%emt 0:01:09]} Kf6 {[%emt 0:00:00]} 65. Kh5 {[%emt 0:11:43]} Rf8 {[%emt 0:01:06]} 66. Bxe6 {[%emt 0:00:41]} Kxe6 {[%emt 0:00:00]} 67. g7 {[%emt 0:03:56]} Rg8 {[%emt 0:04:47]} 68. Kxh6 {[%emt 0:02:46]} Kf6 {[%emt 0:01:02]} 69. Nd7+ {[%emt 0:00:24]} Kf5 {[%emt 0:00:13]} 70. Kh7 {[%emt 0:00:07]} Rxg7+ {[%emt 0:00:00]} 71. Kxg7 {[%emt 0:00:08]} Kxf4 {[%emt 0:00:00]} 1/2-1/2

[Event "Slovakian ECo-C Extraliga 2024-25"]
[Site "Slovakia"]
[Date "2025.02.16"]
[Round "6"]
[White "Rohacek, Miroslav"]
[Black "Jurcik, Marian"]
[Result "1/2-1/2"]
[Annotator "ChessBase"]
[ECO "D25"]
[WhiteElo "2222"]
[BlackElo "2411"]
[PlyCount "112"]
[EventDate "2024.09.12"]
[EventType "team-tourn"]
[EventCountry "SVK"]
[SourceTitle "playchess.com"]
[Source "ChessBase"]
[SourceQuality "1"]
[TimeControl "5400+30"]

1. d4 {[%emt 0:01:11]} d5 {[%emt 0:01:16]} 2. Nf3 {[%emt 0:03:26]} Nf6 {[%emt 0:01:52]} 3. c4 {[%emt 0:01:02]} dxc4 {[%emt 0:01:05]} 4. e3 {[%emt 0:03:31]} Bg4 {[%emt 0:01:00]} 5. Bxc4 {[%emt 0:01:58]} e6 {[%emt 0:00:49]} 6. O-O {[%emt 0:03:25]} a6 {[%emt 0:00:57]} 7. Nbd2 {[%emt 0:05:02]} Nbd7 {[%emt 0:05:33]} 8. Be2 {[%emt 0:06:40]} c5 {[%emt 0:02:06]} 9. b3 {[%emt 0:02:45]} Be7 {[%emt 0:02:08]} 10. Bb2 {[%emt 0:00:56]} O-O {[%emt 0:00:26]} 11. Nc4 {[%emt 0:01:39]} Rc8 {[%emt 0:19:22]} 12. Nfe5 {[%emt 0:06:16]} Bxe2 {[%emt 0:01:01]} 13. Qxe2 {[%emt 0:00:18]} b5 {[%emt 0:00:46]} 14. Nxd7 {[%emt 0:01:50]} Nxd7 {[%emt 0:00:41]} 15. Nd2 {[%emt 0:00:23]} Bf6 {[%emt 0:11:58]} 16. Ne4 {[%emt 0:05:21]} c4 {[%emt 0:01:23]} 17. Rfc1 {[%emt 0:11:11]} cxb3 {[%emt 0:06:04]} 18. axb3 {[%emt 0:01:16]} Qb6 {[%emt 0:06:05]} 19. Nc5 {[%emt 0:19:05]} Nxc5 {[%emt 0:13:31]} 20. dxc5 {[%emt 0:00:23]} Rxc5 {[%emt 0:00:40]} 21. Rxc5 {[%emt 0:05:25]} Qxc5 {[%emt 0:02:45]} 22. Rxa6 {[%emt 0:04:16]} Rc8 {[%emt 0:03:49]} 23. h3 {[%emt 0:05:21]} Bxb2 {[%emt 0:02:11]} 24. Qxb2 {[%emt 0:00:13]} h6 {[%emt 0:03:09]} 25. Ra1 {[%emt 0:02:50]} Qc3 {[%emt 0:01:08]} 26. Qb1 {[%emt 0:02:29]} g6 {[%emt 0:01:44]} 27. Qd1 {[%emt 0:01:03]} Qb2 {[%emt 0:02:08]} 28. Rb1 {[%emt 0:01:16]} Qc2 {[%emt 0:00:54]} 29. Qe1 {[%emt 0:01:38]} b4 {[%emt 0:00:48]} 30. Ra1 {[%emt 0:01:53]} Rc3 {[%emt 0:02:31]} 31. Ra8+ {[%emt 0:01:19]} Kg7 {[%emt 0:00:33]} 32. Rb8 {[%emt 0:00:17]} Qb2 {[%emt 0:01:51]} 33. Kh2 {[%emt 0:00:34]} Rxb3 {[%emt 0:00:17]} 34. Rb5 {[%emt 0:00:41]} Rc3 {[%emt 0:02:06]} 35. Kg3 {[%emt 0:00:31]} Rc4 {[%emt 0:02:12]} 36. Qd1 {[%emt 0:00:21]} h5 {[%emt 0:00:32]} 37. Qd3 {[%emt 0:00:43]} h4+ {[%emt 0:00:42]} 38. Kh2 {[%emt 0:00:05]} Qc3 {[%emt 0:00:45]} 39. Qd6 {[%emt 0:00:25]} b3 {[%emt 0:00:40]} 40. Rb8 {[%emt 0:01:00]} Kh7 {[%emt 0:00:29]} 41. Qf8 {[%emt 0:00:00]} Qg7 {[%emt 0:00:00]} 42. Qxg7+ {[%emt 0:00:00]} Kxg7 {[%emt 0:00:00]} 43. Rxb3 {[%emt 0:00:00]} Rc2 {[%emt 0:00:00]} 44. f3 {[%emt 0:00:00]} g5 {[%emt 0:00:00]} 45. e4 {[%emt 0:00:00]} Rc7 {[%emt 0:00:00]} 46. Rb5 {[%emt 0:00:00]} Kg6 {[%emt 0:00:00]} 47. Ra5 {[%emt 0:00:00]} Rc6 {[%emt 0:00:00]} 48. Rb5 {[%emt 0:00:00]} f6 {[%emt 0:00:00]} 49. Ra5 {[%emt 0:00:00]} e5 {[%emt 0:00:00]} 50. Rb5 {[%emt 0:00:00]} Kf7 {[%emt 0:00:00]} 51. Ra5 {[%emt 0:00:00]} Ke6 {[%emt 0:00:00]} 52. Rb5 {[%emt 0:00:00]} Kd6 {[%emt 0:00:00]} 53. Ra5 {[%emt 0:00:00]} Rb6 {[%emt 0:00:23]} 54. Rd5+ {[%emt 0:00:00]} Kc7 {[%emt 0:02:03]} 55. Ra5 {[%emt 0:00:00]} Kc6 {[%emt 0:00:40]} 56. Kg1 {[%emt 0:00:00]} Kd6 {[%emt 0:01:17]} 1/2-1/2

[Event "Slovakian ECo-C Extraliga 2024-25"]
[Site "Slovakia"]
[Date "2025.02.16"]
[Round "6"]
[White "Molnar, Erno"]
[Black "Cajka, Tibor"]
[Result "1/2-1/2"]
[Annotator "ChessBase"]
[ECO "B33"]
[WhiteElo "2208"]
[BlackElo "2227"]
[PlyCount "52"]
[EventDate "2024.09.12"]
[EventType "team-tourn"]
[EventCountry "SVK"]
[SourceTitle "playchess.com"]
[Source "ChessBase"]
[SourceQuality "1"]
[TimeControl "5400+30"]

1. e4 {[%emt 0:00:43]} c5 {[%emt 0:00:39]} 2. Nf3 {[%emt 0:00:32]} Nc6 {[%emt 0:00:49]} 3. d4 {[%emt 0:00:00]} cxd4 {[%emt 0:00:10]} 4. Nxd4 {[%emt 0:00:58]} Nf6 {[%emt 0:00:59]} 5. Nc3 {[%emt 0:01:08]} e5 {[%emt 0:00:14]} 6. Ndb5 {[%emt 0:00:18]} d6 {[%emt 0:00:09]} 7. Nd5 {[%emt 0:01:04]} Nxd5 {[%emt 0:00:09]} 8. exd5 {[%emt 0:02:05]} Nb8 {[%emt 0:00:28]} 9. a4 {[%emt 0:01:00]} Be7 {[%emt 0:00:25]} 10. Bd2 {[%emt 0:01:11]} O-O {[%emt 0:06:34]} 11. a5 {[%emt 0:03:52]} f5 {[%emt 0:00:08]} 12. Be2 {[%emt 0:02:27]} f4 {[%emt 0:36:35]} 13. O-O {[%emt 0:02:55]} a6 {[%emt 0:03:52]} 14. Nc3 {[%emt 0:02:19]} Bf5 {[%emt 0:03:33]} 15. Bg4 {[%emt 0:04:12]} Qc8 {[%emt 0:01:00]} 16. Bxf5 {[%emt 0:28:48]} Qxf5 {[%emt 0:00:21]} 17. f3 {[%emt 0:02:31]} Nd7 {[%emt 0:00:31]} 18. Ne4 {[%emt 0:01:01]} Rac8 {[%emt 0:05:30]} 19. Rc1 {[%emt 0:06:33]} Nf6 {[%emt 0:00:56]} 20. Nxf6+ {[%emt 0:01:02]} Rxf6 {[%emt 0:02:11]} 21. c4 {[%emt 0:15:02]} Qd3 {[%emt 0:03:38]} 22. b3 {[%emt 0:04:58]} Qd4+ {[%emt 0:01:15]} 23. Kh1 {[%emt 0:10:47]} g5 {[%emt 0:02:24]} 24. Be1 {[%emt 0:04:37]} Qxd1 {[%emt 0:00:04]} 25. Rxd1 {[%emt 0:03:47]} Rf7 {[%emt 0:02:47]} 26. Bf2 {[%emt 0:00:00]} Bd8 {[%emt 0:07:34]} 1/2-1/2